[Event "12th WLC Weekend 2022"]
[Site "Eindhoven"]
[Date "2022.05.14"]
[Round "2.17"]
[White "Koster, Chiel"]
[Black "Kools, Jasper"]
[Result "1/2-1/2"]
[ECO "B42"]
[WhiteElo "1924"]
[BlackElo "1774"]
[Annotator "TA"]
[PlyCount "51"]
[EventDate "2022.05.13"]
[EventType "swiss"]
[EventCountry "NED"]
[SourceTitle "playchess.com"]
[Source "ChessBase"]
[SourceQuality "1"]
[TimeControl "5400+30"]

{[%evp 10,51,25,10,52,64,72,0,35,41,35,30,33,14,14,10,19,14,7,26,20,0,7,0,0,0,0,4,7,0,5,0,2,0,0,0,0,-5,-6,-8,0,-1,0,0]} 1. e4 {[%emt 0:00:18]} c5 {[%emt 0:00:11]} 2. Nf3 {[%emt 0:00:10]} e6 {[%emt 0:00:11]} 3. d4 {[%emt 0:00:12]} cxd4 {[%emt 0:00:06]} 4. Nxd4 {[%emt 0:00:03]} a6 {[%emt 0:00:21]} 5. Bd3 {[%emt 0:00:17]} Bc5 {[%emt 0:01:20]} 6. Be3 {[%emt 0:00:52][%cal Od4e6]} Qb6 {[%emt 0:06:11] B42: Sicilian: Kan Variation: 5 Bd3.} 7. c3 {[%emt 0:05:26] Active counter play!} Nc6 {[%emt 0:02:56]} 8. Qb3 {[%emt 0:04:06]} ({Better is} 8. Nd2 $16) 8... Qa7 {[%emt 0:10:54]} 9. Nxc6 {[%emt 0:01:14]} (9. Nd2 {feels hotter.} Nf6 10. Nxc6 bxc6 11. Bxc5 Qxc5 12. Qc4) 9... bxc6 {[%emt 0:00:36]} 10. Bxc5 {[%emt 0:00:05]} Qxc5 {[%emt 0:00:05] [#]} 11. Qa3 $146 {[%emt 0:01:05]} ({Predecessor:} 11. O-O Nf6 12. Nd2 O-O 13. Nf3 e5 14. Qd1 d5 15. exd5 e4 16. Nd4 exd3 17. dxc6 {0-1 (28) Waechter,N (1655)-Bauyrzhan,A (1845) Caldas Novas 2011}) 11... Qxa3 {[%emt 0:00:26]} 12. Nxa3 {[%emt 0:00:08]} d5 {[%emt 0:02:50] Against Nc4} 13. Nc2 {[%emt 0:04:13]} Nf6 {[%emt 0:00:39]} 14. exd5 {[%emt 0:01:29]} cxd5 {[%emt 0:00:52]} 15. O-O {[%emt 0:03:54] The position is equal.} O-O {[%emt 0:02:13]} 16. c4 {[%emt 0:01:38]} dxc4 {[%emt 0:00:41]} 17. Bxc4 {[%emt 0:00:05]} Bb7 {[%emt 0:00:35]} 18. Ne3 {[%emt 0:01:24]} Rfd8 {[%emt 0:01:46]} 19. Rfd1 {[%emt 0:01:17]} Kf8 {[%emt 0:00:36]} 20. b4 {[%emt 0:01:09]} Ke7 {[%emt 0:03:50]} 21. a4 {[%emt 0:02:56]} Nd5 {[%emt 0:00:36]} 22. Bxd5 {[%emt 0:01:43]} Bxd5 {[%emt 0:00:32]} 23. b5 {[%emt 0:01:59]} axb5 {[%emt 0:04:02]} 24. axb5 {[%emt 0:01:39]} Rxa1 {[%emt 0:01:45]} 25. Rxa1 {[%emt 0:00:13]} Rb8 {[%emt 0:00:44]} 26. Ra7+ {[%emt 0:03:41] Weighted Error Value: White=0.11 (very precise) /Black=0.05 (flawless)} 1/2-1/2

[Event "12th WLC Weekend 2022"]
[Site "Eindhoven"]
[Date "2022.05.14"]
[Round "2.18"]
[White "Verhoeven, Robin"]
[Black "Hubers, Daan"]
[Result "1-0"]
[ECO "B02"]
[WhiteElo "1946"]
[BlackElo "1818"]
[Annotator "TA"]
[PlyCount "76"]
[EventDate "2022.05.13"]
[EventType "swiss"]
[EventCountry "NED"]
[SourceTitle "playchess.com"]
[Source "ChessBase"]
[SourceQuality "1"]
[TimeControl "5400+30"]

{[%evp 9,76,79,96,81,81,83,115,112,138,97,100,104,145,108,150,99,109,51,92,92,83,98,93,81,150,-50,171,170,221,220,199,74,261,256,252,245,241,170,160,159,222,216,267,291,285,203,485,513,523,93,479,408,382,272,548,529,790,759,1575,1552,1681,1701,1671,1669,1987,1952,1906,1784,6407]} 1. e4 {[%emt 0:00:03][%cal Be2e4,Be4e5][%mdl 32]} Nf6 {[%emt 0:00:11]} 2. e5 {[%emt 0:00:05]} Ng8 {[%emt 0:00:04]} 3. d4 {[%emt 0:00:21]} d6 {[%emt 0:00:06]} 4. f4 {[%emt 0:00:29]} g6 {[%emt 0:05:26] [#]} 5. Be3 $146 {[%emt 0:01:46]} ({Predecessor:} 5. Nf3 Bg4 6. h3 Bxf3 7. Qxf3 c6 8. Bd3 Bg7 9. b3 Qb6 10. Be3 Nh6 11. Nd2 d5 {0-1 (36) Antoniou,R (1510)-Karagiannis,K (1843) Lympia 2020}) 5... Bg7 {[%emt 0:05:09]} 6. Nf3 {[%emt 0:02:33] B02: Alekhine's Defence: Chase Variation and lines with early Nc3.} dxe5 {[%emt 0:06:27]} 7. fxe5 {[%emt 0:00:20]} (7. dxe5 Qxd1+ 8. Kxd1 Nh6 $11) (7. Nxe5 Nh6 $14) 7... e6 {[%emt 0:07:36]} 8. Nbd2 {[%emt 0:01:57] White is better.} Nd7 {[%emt 0:02:41]} 9. Bc4 {[%emt 0:15:12]} Ne7 {[%emt 0:03:59][%cal Oc7c5]} 10. Ne4 {[%emt 0:02:23] Prevents c5.} Nb6 {[%emt 0:03:47]} 11. Bb3 {[%emt 0:01:03] White is much more active. The black rooks are badly placed.} h6 {[%emt 0:01:52]} 12. Qd2 {[%emt 0:01:56]} ({Better is} 12. Qe2) 12... Bd7 $16 {[%emt 0:02:08]} 13. Nc5 {[%emt 0:10:16]} ({White should try} 13. c4 $16) 13... Qc8 {[%emt 0:13:46]} 14. c4 {[%emt 0:06:46]} Bc6 {[%emt 0:07:00]} 15. O-O {[%emt 0:01:02]} Nf5 {[%emt 0:06:46]} 16. Bf4 {[%emt 0:11:04] Threatens to win with d5.} Bf8 {[%emt 0:02:15]} (16... Qd8 $142) 17. Nd3 $2 {[%emt 0:01:22]} (17. g4 $1 $16 {[%cal Rg4f5]}) 17... Qd7 $2 {[%emt 0:00:28]} (17... Bxf3 $15 18. Rxf3 Nxd4) 18. d5 $1 $36 {[%emt 0:05:40][%mdl 2048] White is in control.} exd5 {[%emt 0:01:06] [#]} (18... O-O-O {might work better.}) 19. e6 $1 {[%emt 0:00:08]} fxe6 {[%emt 0:02:04]} 20. Nde5 {[%emt 0:03:36]} (20. Nfe5 $18 Qg7 21. Nxc6 dxc4 {[#]} 22. Qe2 $1) 20... Qg7 {[%emt 0:01:40]} (20... Qd6 $16 {was called for.}) 21. Nxc6 {[%emt 0:01:31]} bxc6 {[%emt 0:00:07]} 22. Be5 {[%emt 0:00:29]} Qh7 {[%emt 0:03:21]} 23. Bxh8 {[%emt 0:00:11]} Qxh8 {[%emt 0:00:04]} 24. cxd5 {[%emt 0:00:27]} cxd5 {[%emt 0:01:21]} (24... O-O-O $16 25. Rae1 exd5) 25. Rfe1 {[%emt 0:00:36]} Bc5+ {[%emt 0:14:11]} 26. Kh1 {[%emt 0:00:29]} O-O-O {[%emt 0:02:14]} 27. Qa5 {[%emt 0:01:30]} ({Don't play} 27. Rxe6 $6 Nd4 28. Nxd4 (28. Rxg6 Nxf3 29. gxf3 Qe5 $18) 28... Qxd4 $18) 27... Be3 $2 {[%emt 0:02:28]} (27... Bd6 28. Rxe6 Qxb2 29. Qa6+ Kb8) 28. g4 {[%emt 0:03:03]} Bf2 {[%emt 0:02:28]} 29. Ne5 $2 {[%emt 0:01:55]} (29. gxf5 $18 {and White stays clearly on top.} Bxe1 30. Rxe1) 29... Rf8 $2 {[%emt 0:01:38][%mdl 8192]} (29... Bxe1 $2 {gets mated.} 30. Qa6+ Kb8 31. Nc6+ Ka8 32. Qxa7#) (29... Nd4 $16) 30. Qa6+ {[%emt 0:01:29]} (30. gxf5 Bxe1 31. Rxe1 Rxf5 $18) 30... Kd8 {[%emt 0:00:05] aiming for ...Ne3.} 31. Nxg6 {[%emt 0:03:25][%cal Be5g6,Bg6f8,Bf8e6,Be6c5][%mdl 96] Discovered Attack} Qf6 {[%emt 0:02:28]} (31... Qd4 {keeps fighting.} 32. Nxf8 Qxg4 33. Nxe6+ Kd7 34. Nf8+ Kd8 35. Ne6+ Kd7 36. Nf8+ Kd8 37. Ne6+) 32. Nxf8 {[%emt 0:00:30] White is clearly winning.} ({Not} 32. gxf5 Qxf5 33. Ne5 Bxe1 34. Rxe1 Qf2 $16) 32... Ng3+ {[%emt 0:00:02]} 33. Kg2 {[%emt 0:00:11]} Ne4 {[%emt 0:01:25] [#]} 34. Rxe4 $1 {[%emt 0:00:18]} dxe4 {[%emt 0:00:04]} (34... Qxf8 35. Rxe6) 35. Nxe6+ {[%emt 0:00:08]} Ke7 {[%emt 0:00:18]} 36. Qe2 {[%emt 0:00:19]} Bh4 {[%emt 0:01:08]} 37. Rf1 {[%emt 0:00:14]} Qg6 {[%emt 0:00:34]} 38. Nc5 {[%emt 0:00:24] And now Rf7+ would win.} Qh7 {[%emt 0:00:58] Weighted Error Value: White=0.54/Black=0.80} 1-0

[Event "12th WLC Weekend 2022"]
[Site "Eindhoven"]
[Date "2022.05.14"]
[Round "2.19"]
[White "Auwens, Michel"]
[Black "Wuijts, Johan"]
[Result "1-0"]
[ECO "C00"]
[WhiteElo "1791"]
[BlackElo "1964"]
[Annotator "TA"]
[PlyCount "87"]
[EventDate "2022.05.13"]
[EventType "swiss"]
[EventCountry "NED"]
[SourceTitle "playchess.com"]
[Source "ChessBase"]
[SourceQuality "1"]
[TimeControl "5400+30"]

{[%evp 9,87,8,8,3,37,12,9,0,54,41,54,43,45,25,36,36,20,10,12,8,17,-13,46,-14,-19,-57,0,-53,-46,-123,-129,-156,-125,-127,61,44,170,128,146,112,575,308,633,135,183,170,176,170,151,-214,-203,-200,-195,-186,0,-1270,1034,1034,799,972,878,-1097,-1085,-1069,-1043,-1506,-1478,-1256,-741,-718,-701,-1209,112,136,29989,29990,29990,29991,29991,29992]} 1. e4 {[%emt 0:00:03]} e6 {[%emt 0:00:06]} 2. d3 {[%emt 0:00:03][%cal Bd2d3,Bd3d4][%mdl 32]} d5 {[%emt 0:01:02]} 3. Nd2 {[%emt 0:00:03]} Nf6 {[%emt 0:03:12]} 4. g3 {[%emt 0:00:42]} Bc5 {[%emt 0:05:31]} 5. e5 {[%emt 0:08:09]} Nfd7 {[%emt 0:00:19]} 6. Nb3 {[%emt 0:01:28] C00: French: Unusual White 2nd moves.} Bb6 {[%emt 0:00:37]} 7. d4 {[%emt 0:03:40]} O-O {[%emt 0:03:24]} 8. Bd3 {[%emt 0:04:01] [#] The position is equal.} f5 $146 {[%emt 0:07:10]} (8... c5 $11 9. dxc5 (9. Qh5 f5 $11) 9... Nxc5) ({Predecessor:} 8... Nc6 9. c3 Ne7 10. Qh5 f5 11. Bg5 c5 12. Qh4 Rf7 13. Be2 cxd4 14. cxd4 h6 {0-1 (48) Perez Rosales,P (2129)-Menvielle Laccourreye,A (2261) Las Palmas 2012}) 9. Be3 {[%emt 0:03:41]} Qe7 {[%emt 0:01:21]} 10. c3 {[%emt 0:04:47]} c5 {[%emt 0:02:49]} 11. dxc5 {[%emt 0:10:42]} Nxc5 {[%emt 0:03:14]} 12. Nxc5 {[%emt 0:01:17]} Bxc5 {[%emt 0:00:07]} 13. Qd2 {[%emt 0:01:23]} Nc6 {[%emt 0:07:51]} 14. Nf3 {[%emt 0:08:44] Prevents d4.} Bd7 {[%emt 0:10:06]} 15. O-O-O {[%emt 0:05:56]} b5 {[%emt 0:06:38]} (15... Rab8 $11) 16. Bg5 {[%emt 0:06:45]} (16. Bxb5 $14 Nxe5 17. Bxc5 Qxc5 18. Nxe5 Bxb5 19. f4) 16... Qe8 $11 {[%emt 0:01:32]} 17. h4 {[%emt 0:01:32]} Qb8 {[%emt 0:11:21]} (17... b4 $15 18. c4 h6) 18. Qe2 {[%emt 0:06:51]} (18. Kb1 $11) 18... Qb6 {[%emt 0:02:50]} 19. Rh2 {[%emt 0:01:27]} (19. Bxb5 $15 Bxf2 20. Bxc6 Bxc6 21. Nd4 Bxd4 22. Rxd4) 19... b4 $17 {[%emt 0:09:56][%cal Bb5b4,Bb4b3][%mdl 32]} 20. c4 {[%emt 0:00:38]} b3 $1 {[%emt 0:04:23]} 21. a3 {[%emt 0:00:54]} d4 $2 {[%emt 0:03:10]} (21... Rfc8 $1 $17 {...Na5 is the strong threat.} 22. Kb1 (22. cxd5 $2 Nd4 $19) 22... Nd4 23. Nxd4 Bxd4) 22. g4 $1 $14 {[%emt 0:04:47]} Rab8 {[%emt 0:03:32]} ({Black should play} 22... Bxa3 $14 23. gxf5 (23. bxa3 fxg4 24. Ne1 Qa5 $11) 23... Nb4 24. fxe6 (24. bxa3 Na2+ 25. Kb2 Nc3 $11) 24... Nxd3+ 25. Qxd3 Bxe6 26. Nxd4 (26. bxa3 $2 b2+ 27. Kb1 Bf5 $19) 26... Bf7) 23. gxf5 {[%emt 0:02:21]} exf5 {[%emt 0:00:58][%cal Oc5a3]} 24. Rg1 {[%emt 0:00:46]} (24. e6 Rbe8 25. Rg1 Rxe6 $17) 24... Bxa3 $2 {[%emt 0:01:17][%mdl 8192]} 25. Bh6 {[%emt 0:00:31]} (25. bxa3 b2+ 26. Kb1 Qa5 $15) 25... Rf7 {[%emt 0:00:36]} (25... Bxb2+ 26. Kd1 (26. Kxb2 $2 Qa5 $19) (26. Qxb2 $2 Nb4 $19) 26... g6 27. Qxb2 (27. Bxf8 Bc3 $17) 27... Nb4) 26. Rhg2 $2 {[%emt 0:04:36]} ({And not} 26. bxa3 b2+ 27. Kb1 Qc5 $11) (26. e6 $18 Re7 27. Bxg7 (27. bxa3 b2+ 28. Kb1 Qb3 $11) (27. exd7 $2 Rxe2 28. Rxg7+ Kh8 $19) (27. Bxf5 Qa5 $16) 27... Rxg7 28. exd7 Rxg1+ 29. Nxg1) 26... Bf8 $16 {[%emt 0:03:13] White must now prevent ...Nb4.} 27. e6 {[%emt 0:02:58][%mdl 64] Deflection, Double Attack} Re7 {[%emt 0:00:05]} 28. Bxf5 {[%emt 0:00:15]} Qa5 {[%emt 0:01:17] Inhibits Ne5.} 29. Bxg7 $2 {[%emt 0:03:42] White is more active.} ({Avoid the trap} 29. Bxh7+ $2 Kxh7 30. Qd3+ Kh8 31. Rxg7 Bxg7 $19) (29. Bb1 $16 {keeps the pressure on. Qd3 would kill now.} Qh5 30. Bf4 (30. Bxh7+ Kh8 $17) 30... Bxe6 31. Bxb8) 29... Bxg7 $19 {[%emt 0:00:36]} 30. Bb1 {[%emt 0:03:05] [#] Strongly threatening Rg5.} Be8 $1 {[%emt 0:02:33]} 31. Rg5 {[%emt 0:05:18] [#] Inhibits Bg6.} Qa1 {[%emt 0:00:53]} (31... Qc7 $1 $19 {And now ...Rd8 would win.} 32. h5 h6) 32. Nd2 $2 {[%emt 0:00:49][%mdl 8192]} (32. Nxd4 $11 Nxd4 33. Rxg7+ Rxg7 34. Rxg7+ Kxg7 35. Qe5+ Kf8 36. Qd6+ Kg8 37. Qg3+ Bg6 38. Qxb8+ Kg7 39. Qe5+ Kg8 40. Qb8+ Kg7 41. Qe5+ Kg8 42. Qb8+) 32... Nb4 $4 {[%emt 0:03:19][%mdl 8192] [#]} (32... Bg6 $19 33. Rxg6 hxg6 34. Rxg6 d3) 33. Rxg7+ $1 $18 {[%emt 0:00:54][%mdl 576] Remove Defender} Rxg7 {[%emt 0:00:09]} 34. Rxg7+ {[%emt 0:00:08]} Kxg7 {[%emt 0:00:09]} 35. Qg4+ $4 {[%emt 0:00:08][%mdl 8192]} (35. Qe5+ $18 Kg8 36. Qxb8 Nd3+ 37. Kd1 Nxb2+ 38. Ke1) 35... Bg6 $19 {[%emt 0:00:45] ( -> ...Nd3+)} 36. Qxd4+ {[%emt 0:00:06]} Kg8 {[%emt 0:00:15]} 37. Qd6 {[%emt 0:01:32]} Nd3+ {[%emt 0:00:47]} 38. Kd1 {[%emt 0:00:16]} Nxb2+ {[%emt 0:00:07]} 39. Ke2 {[%emt 0:00:21]} Re8 {[%emt 0:00:34]} 40. e7 {[%emt 0:00:24]} Na4 $2 {[%emt 0:01:35]} (40... Bxb1 $19 41. Qd5+ Kg7) 41. Bxg6 $16 {[%emt 0:01:11] Really sharp!} hxg6 {[%emt 0:01:00][%mdl 8192]} (41... Nc3+ $2 42. Kd3 Rxe7 43. Qd8+ Kg7 44. Qxe7+ $18) (41... Rxe7+ $16 42. Qxe7 hxg6 43. Qe8+ (43. Nxb3 Qb2+ 44. Nd2 Nc3+ 45. Kd3 Na2 $16) 43... Kg7) 42. Qxg6+ {[%emt 0:00:13] White mates.} Qg7 {[%emt 0:00:06]} 43. Qxe8+ {[%emt 0:00:18]} Kh7 {[%emt 0:00:14]} 44. Qh5+ {[%emt 0:00:32] Weighted Error Value: White=1.10/Black=0.77} 1-0

[Event "12th WLC Weekend 2022"]
[Site "Eindhoven"]
[Date "2022.05.14"]
[Round "2.20"]
[White "Oskam, Julian"]
[Black "Duson, Robin"]
[Result "1/2-1/2"]
[ECO "A20"]
[WhiteElo "1627"]
[BlackElo "1980"]
[Annotator "TA"]
[PlyCount "70"]
[EventDate "2022.05.13"]
[EventType "swiss"]
[EventCountry "NED"]
[SourceTitle "playchess.com"]
[Source "ChessBase"]
[SourceQuality "1"]
[TimeControl "5400+30"]

{[%evp 9,70,12,10,0,0,0,0,0,0,0,-3,-22,-27,-33,-20,-41,-41,-41,-33,-28,-21,-64,-52,-93,-88,-82,-55,-61,0,0,0,0,0,-19,-6,-15,0,0,32,35,38,0,0,0,43,0,0,0,0,-23,-14,-31,-26,-43,-41,-50,0,0,53,0,0,0,0]} 1. c4 {[%emt 0:00:03][%cal Bc2c4,Bc4d5][%mdl 32]} e5 {[%emt 0:00:08]} 2. g3 {[%emt 0:00:05]} c6 {[%emt 0:00:15]} 3. d4 {[%emt 0:03:51]} e4 {[%emt 0:00:13]} 4. d5 {[%emt 0:02:38]} cxd5 {[%emt 0:02:45]} 5. cxd5 {[%emt 0:05:05]} Nf6 {[%emt 0:00:44][%cal Bg8f6,Bf6d5,Bd5b4,Bb4d3][%mdl 32]} 6. Bg2 {[%emt 0:02:02] A20: English Opening: 1...e5.} Bb4+ {[%emt 0:06:50]} 7. Bd2 {[%emt 0:02:32]} Qe7 {[%emt 0:12:34]} 8. Bxb4 {[%emt 0:06:19]} Qxb4+ {[%emt 0:00:09]} 9. Qd2 {[%emt 0:00:12]} Nxd5 {[%emt 0:03:48]} 10. Qxb4 {[%emt 0:04:19]} Nxb4 {[%emt 0:01:14]} 11. Bxe4 {[%emt 0:00:11]} d5 {[%emt 0:01:02] [#]} 12. Bd3 $146 {[%emt 0:00:15]} ({Predecessor:} 12. a3 dxe4 13. axb4 Nc6 14. b5 Nd4 15. Ra4 Nxb5 16. Rxe4+ Be6 17. Nf3 O-O 18. O-O {½-½ (59) Abdusattorov,N (2633)-Harsha,B (2489) Warsaw 2021}) 12... Nxd3+ {[%emt 0:00:37]} 13. exd3 {[%emt 0:00:06]} O-O {[%emt 0:01:15]} 14. Nc3 {[%emt 0:01:21]} d4 {[%emt 0:06:11]} 15. Nb5 {[%emt 0:01:33] [#] And now Nc7 would win.} Nc6 $1 {[%emt 0:00:31]} 16. Nf3 {[%emt 0:07:51]} Rd8 {[%emt 0:01:05] White must now prevent ...a6.} 17. Kd2 {[%emt 0:02:05]} Bf5 {[%emt 0:02:25]} (17... Bg4 {feels hotter.} 18. Ng5 a6 19. Na3 h6) 18. Nh4 {[%emt 0:02:26]} Be6 {[%emt 0:06:23]} (18... Bh3 $15) 19. Nc7 $11 {[%emt 0:01:19]} Rac8 {[%emt 0:00:07]} 20. Nxe6 {[%emt 0:00:07]} fxe6 {[%emt 0:00:03]} 21. Rac1 {[%emt 0:06:11]} g5 {[%emt 0:08:06]} 22. Nf3 {[%emt 0:06:49]} Rf8 {[%emt 0:06:40]} 23. Ke2 {[%emt 0:00:58]} Rf5 {[%emt 0:02:14] [#] Hoping for ...Rcf8.} (23... g4 $5 {[%cal Rf8f3]} 24. Nd2 Ne5 $11) 24. Nd2 {[%emt 0:02:35]} Rcf8 {[%emt 0:01:09]} 25. Rhf1 {[%emt 0:02:16]} Rb5 {[%emt 0:02:14]} 26. Nc4 {[%emt 0:05:19]} Ne5 {[%emt 0:08:37]} 27. Nxe5 {[%emt 0:01:02]} (27. a4 {is interesting.} Rd5 28. Nd2 g4 29. h3) 27... Rxe5+ $14 {[%emt 0:00:09][%mdl 4096] Endgame KRR-KRR} 28. Kd2 {[%emt 0:00:35]} Rb5 {[%emt 0:02:24]} 29. Rc2 {[%emt 0:00:58]} g4 {[%emt 0:00:32]} 30. Ke1 {[%emt 0:02:58]} Rf3 {[%emt 0:02:48]} 31. Rd2 {[%emt 0:01:38]} Kf7 {[%emt 0:01:23]} 32. Rh1 {[%emt 0:01:02]} Ke7 {[%emt 0:02:55]} (32... Ra5 $15) 33. Kf1 $11 {[%emt 0:00:24]} Kd6 {[%emt 0:01:23]} (33... h5 $11) 34. Kg2 {[%emt 0:00:20]} ({White should try} 34. h3 $1 $14) 34... h5 {[%emt 0:02:00]} 35. h3 {[%emt 0:00:32]} Rf7 {[%emt 0:01:38] Weighted Error Value: White=0.13 (very precise) /Black=0.11 (very precise)} 1/2-1/2

[Event "12th WLC Weekend 2022"]
[Site "Eindhoven"]
[Date "2022.05.14"]
[Round "2.21"]
[White "Coenen, Eduard"]
[Black "Van Kuijk, Vadim"]
[Result "1-0"]
[ECO "D00"]
[WhiteElo "2030"]
[BlackElo "1898"]
[Annotator "TA"]
[PlyCount "132"]
[EventDate "2022.05.13"]
[EventType "swiss"]
[EventCountry "NED"]
[SourceTitle "playchess.com"]
[Source "ChessBase"]
[SourceQuality "1"]
[TimeControl "5400+30"]

{[%evp 9,132,18,33,0,0,0,25,-48,-52,-42,-48,-91,-70,-82,-13,-11,-14,-9,-14,-32,-38,-22,0,-5,0,0,12,6,7,0,0,0,0,0,0,0,0,-6,-8,-13,0,-50,-50,-55,234,233,316,302,302,294,443,443,443,443,443,443,443,443,443,443,418,418,668,657,589,657,579,572,572,572,572,572,273,81,81,57,57,57,237,201,218,222,231,231,29970,29971,29971,29972,29972,29973,29973,29974,29974,29974,29975,29976,29976,29977,29977,29978,29978,29979,29981,29980,29980,29981,29981,29981,29981,29982,29985,29986,29986,29987,29987,29988,29990,29991,29992,29993,29996,29997,29998,29999,29999]} 1. d4 {[%emt 0:00:10]} d5 {[%emt 0:00:05]} 2. Bf4 {[%emt 0:00:12]} c5 {[%emt 0:00:11]} 3. c3 {[%emt 0:00:16]} Nc6 {[%emt 0:00:13]} 4. e3 {[%emt 0:00:11]} Qb6 {[%emt 0:06:48]} 5. Qb3 {[%emt 0:00:27]} c4 {[%emt 0:00:16]} 6. Qxb6 {[%emt 0:01:50] D00: 1 d4 d5: Unusual lines.} axb6 {[%emt 0:00:17]} 7. e4 {[%emt 0:00:29]} Nf6 {[%emt 0:04:39]} 8. Nd2 {[%emt 0:03:32]} (8. e5 $11 Nh5 9. Be3) 8... b5 $1 $15 {[%emt 0:04:46]} 9. exd5 {[%emt 0:03:41]} Nxd5 {[%emt 0:00:08]} 10. Bg3 {[%emt 0:01:03]} Bf5 {[%emt 0:03:20]} 11. Ngf3 {[%emt 0:04:44] [#]} h6 $146 {[%emt 0:02:04]} (11... e6 $17) ({Predecessor:} 11... e6 12. Be2 f6 13. O-O g5 14. a3 h5 15. h4 g4 16. Ne1 Kd7 17. Rc1 Bh6 {0-1 (54) Kiseljova,M (2031)-Alboredo,J (2182) Chess.com INT 2021}) 12. Be2 $11 {[%emt 0:00:37]} e6 {[%emt 0:02:01]} 13. O-O {[%emt 0:00:52][%cal Oa2a4]} Be7 {[%emt 0:00:32]} 14. a3 {[%emt 0:00:44] Inhibits b4.} O-O {[%emt 0:04:01]} 15. Rfe1 {[%emt 0:01:18]} Rfe8 {[%emt 0:10:14]} 16. Nf1 {[%emt 0:01:13]} Bf6 {[%emt 0:06:11]} 17. Ne3 {[%emt 0:04:12][%cal Oa3a4]} Nxe3 {[%emt 0:01:30]} 18. fxe3 {[%emt 0:00:08]} e5 {[%emt 0:02:04]} 19. dxe5 {[%emt 0:09:12]} (19. a4 {looks sharper.} exd4 20. exd4 Bd7 21. Kf1) 19... Bxe5 {[%emt 0:19:16]} 20. Bxe5 {[%emt 0:10:33]} Nxe5 {[%emt 0:01:03]} 21. Nxe5 {[%emt 0:01:22]} Rxe5 {[%emt 0:00:01]} 22. Bf3 {[%emt 0:00:34]} Re7 {[%emt 0:05:34]} 23. Kf2 {[%emt 0:02:00]} Rae8 {[%emt 0:07:44]} 24. Rad1 {[%emt 0:02:23]} Bd3 {[%emt 0:00:30]} 25. e4 {[%emt 0:04:09]} ({White should play} 25. Be2 $11) 25... Re5 $1 $15 {[%emt 0:01:45]} ({Don't play} 25... Bxe4 26. Bxe4 Rxe4 27. Rxe4 Rxe4 28. Rd5 $16) 26. h3 {[%emt 0:12:57]} f5 $2 {[%emt 0:04:01][%mdl 8192]} ({But not} 26... Bxe4 27. Bxe4 Rxe4 28. Rxe4 Rxe4 29. Rd5 $16) (26... Kf8 $15 {stays ahead.}) 27. exf5 $18 {[%emt 0:01:59]} Rxe1 {[%emt 0:02:31]} 28. Rxe1 {[%emt 0:00:32]} Rxe1 {[%emt 0:00:00]} 29. Kxe1 {[%emt 0:00:03]} Bxf5 {[%emt 0:00:14]} (29... b6 {keeps fighting.} 30. g4 Kf7) 30. Bxb7 {[%emt 0:00:19][%mdl 4096] Endgame KB-KB} Bd7 {[%emt 0:00:07]} 31. Ke2 {[%emt 0:02:40] Ke3 is the strong threat.} Kf7 {[%emt 0:00:49]} 32. Ke3 {[%emt 0:00:04] And now Kd4 would win.} Ke6 {[%emt 0:02:39]} 33. Kd4 {[%emt 0:00:49] Hoping for Kc5.} Kd6 {[%emt 0:01:12]} 34. Bf3 {[%emt 0:01:23]} Be6 {[%emt 0:01:44]} 35. Bd1 {[%emt 0:03:32]} g5 {[%emt 0:00:23]} (35... Bd5 $142 36. g3 Bg2) 36. a4 {[%emt 0:00:22]} bxa4 {[%emt 0:01:12]} 37. Bxa4 {[%emt 0:01:09]} h5 {[%emt 0:01:05]} 38. Bb5 {[%emt 0:09:12]} Bd5 {[%emt 0:01:13]} 39. g3 {[%emt 0:00:59]} h4 {[%emt 0:00:18]} 40. gxh4 {[%emt 0:00:19]} gxh4 {[%emt 0:00:03] [#]} 41. Bxc4 $2 {[%emt 0:01:00]} (41. Bd7 $1 $18 {[%mdl 512] and the rest is easy.}) 41... Bg2 $16 {[%emt 0:00:02]} 42. Ke3 {[%emt 0:01:00]} Bxh3 {[%emt 0:01:05]} 43. Kf4 {[%emt 0:01:12] Strongly threatening Kg5.} Bg2 $2 {[%emt 0:00:40] White now steadily converts the win.} (43... Kc5 $14) 44. Kg4 {[%emt 0:00:43]} h3 {[%emt 0:00:03] ( -> ...h2)} (44... Kc5 $2 45. Be2 $18 (45. Kxh4 Kxc4 46. Kh5 Bh3 $11)) 45. Kg3 {[%emt 0:00:08] White wants to mate with Be2.} Ke5 {[%emt 0:01:30]} 46. Ba6 {[%emt 0:00:35] White threatens Bc8 and mate.} Kd6 $2 {[%emt 0:00:27]} (46... Bc6 $18 47. Kxh3 Kf4) 47. Bc8 {[%emt 0:00:35] White mates.} Kc5 {[%emt 0:01:34]} 48. Bxh3 {[%emt 0:00:10]} Bd5 {[%emt 0:00:35]} 49. Bf1 {[%emt 0:00:17]} Bb3 {[%emt 0:00:16]} 50. Kf4 {[%emt 0:00:14]} Kd5 {[%emt 0:00:23]} 51. Ke3 {[%emt 0:00:43]} Kc5 {[%emt 0:00:06]} 52. Ke4 {[%emt 0:00:21]} Bd5+ {[%emt 0:00:21]} 53. Ke5 {[%emt 0:00:38]} Bb3 {[%emt 0:00:04]} 54. Bd3 {[%emt 0:00:34]} Kc6 {[%emt 0:00:55]} 55. Kd4 {[%emt 0:00:11]} Kd6 {[%emt 0:01:09]} 56. Bc4 {[%emt 0:00:33]} Bd1 {[%emt 0:00:38]} 57. Bd5 {[%emt 0:00:16]} Bg4 {[%emt 0:00:16]} 58. c4 {[%emt 0:00:35]} Bd7 {[%emt 0:00:25]} 59. b4 {[%emt 0:00:31][%cal Bb2b4,Bb4b5,Bb5b6][%mdl 32]} Be8 {[%emt 0:00:22]} 60. b5 {[%emt 0:00:30]} Kc7 {[%emt 0:00:16]} 61. Kc5 {[%emt 0:00:15]} Bg6 {[%emt 0:01:34]} 62. b6+ {[%emt 0:00:44]} Kb8 {[%emt 0:00:10]} 63. Kd6 {[%emt 0:00:15]} Bf5 {[%emt 0:01:03]} 64. c5 {[%emt 0:00:44][%cal Bc4c5,Bc5c6,Bc6c7][%mdl 32]} Bc8 {[%emt 0:01:05]} 65. c6 {[%emt 0:00:40][%csl Gb6,Gd6][%cal Rc6c7]} Bd7 {[%emt 0:00:10]} 66. c7+ {[%emt 0:00:19]} Kc8 {[%emt 0:00:07] Weighted Error Value: White=0.14 (very precise) /Black=0.44} 1-0